fUSD/lending_fUSD_20250519
["ID","MTS","AMOUNT","RATE_DAILY","PERIOD"]
[361620316,1747644648906,-420.0,0.00013698,2]
[361620317,1747644648916,-691.237304,0.00013698,2]
[361620318,1747644648926,-4783.96,0.00013698,2]
[361620319,1747644648935,-420.0,0.00013698,2]
[361620320,1747644648946,-1693.61,0.00013698,2]
[361620321,1747644648956,-601.68,0.00013698,2]
[361620322,1747644648967,-596.15,0.00013698,2]
[361620323,1747644648977,-562.81,0.00013698,2]
[361620324,1747644648987,-500.0,0.00013698,2]
[361620325,1747644648996,-420.0,0.00013698,2]
[361620326,1747644649009,-3491.57,0.00013698,2]
[361620327,1747644649019,-420.0,0.00013698,2]
[361620328,1747644649029,-420.0,0.00013698,2]
[361620329,1747644649038,-10838.81,0.00013698,2]
[361620330,1747644649049,-1976.33,0.00013698,2]
[361620331,1747644649059,-420.0,0.00013698,2]
[361620332,1747644649070,-401.07433648,0.00013698,2]
[361620333,1747644649080,-7260.21,0.00013698,2]
[361620334,1747644649092,-428.53,0.00013698,2]
[361620335,1747644649102,-420.0,0.00013698,2]
[361620336,1747644649112,-530.43,0.00013698,2]
[361620337,1747644649122,-420.0,0.00013698,2]
[361620338,1747644649132,-456.29,0.00013698,2]
[361620339,1747644649141,-420.0,0.00013698,2]
[361620340,1747644649151,-420.0,0.00013698,2]
[361620341,1747644649162,-2151.91,0.00013698,2]
[361620342,1747644649172,-420.0,0.00013698,2]
[361620343,1747644649182,-420.0,0.00013698,2]
[361620344,1747644649192,-1686.12,0.00013698,2]
[361620345,1747644649201,-690.29,0.00013698,2]
[361620346,1747644649211,-922.85,0.00013698,2]
[361620347,1747644649221,-454.8,0.00013698,2]
[361620348,1747644649230,-420.0,0.00013698,2]
[361620349,1747644649240,-383.13578141,0.00013698,2]
[361620350,1747644649250,-400.0,0.00013698,2]
[361620351,1747644649260,-420.0,0.00013698,2]
[361620352,1747644649269,-4444.69,0.00013698,2]
[361620353,1747644649279,-420.0,0.00013698,2]
[361620354,1747644649289,-2094.89,0.00013698,2]
[361620355,1747644649298,-420.0,0.00013698,2]
[361620356,1747644649308,-400.0,0.00013698,2]
[361620357,1747644649318,-420.0,0.00013698,2]
[361620358,1747644649328,-1381.78,0.00013698,2]
[361620359,1747644649337,-420.0,0.00013698,2]
[361620360,1747644649347,-1845.35,0.00013698,2]
[361620361,1747644649357,-420.0,0.00013698,2]
[361620362,1747644649367,-715.59,0.00013698,2]
[361620363,1747644649376,-690.77,0.00013698,2]
[361620364,1747644649386,-400.0,0.00013698,2]
[361620365,1747644649397,-4049.51,0.00013698,2]
[361620366,1747644649407,-420.0,0.00013698,2]
[361620367,1747644649417,-1046.95,0.00013698,2]
[361620368,1747644649427,-420.0,0.00013698,2]
[361620369,1747644649438,-1054.89,0.00013698,2]
[361620370,1747644649447,-1370.89,0.00013698,2]
[361620371,1747644649457,-420.0,0.00013698,2]
[361620372,1747644649467,-420.0,0.00013698,2]
[361620373,1747644649477,-420.0,0.00013698,2]
[361620374,1747644649487,-2115.93,0.00013698,2]
[361620375,1747644649497,-420.0,0.00013698,2]
[361620376,1747644649507,-340.0,0.00013698,2]
[361620377,1747644649516,-1084.1,0.00013698,2]
[361620378,1747644649525,-420.0,0.00013698,2]
[361620379,1747644649535,-527.31,0.00013698,2]
[361620380,1747644649545,-1518.68,0.00013698,2]
[361620381,1747644649554,-420.0,0.00013698,2]
[361620382,1747644649564,-631.77,0.00013698,2]
[361620383,1747644649573,-4410.96,0.00013698,2]
[361620384,1747644649583,-955.75,0.00013698,2]
[361620385,1747644649593,-420.0,0.00013698,2]
[361620386,1747644649602,-833.41,0.00013698,2]
[361620387,1747644649612,-401.88512933,0.00013698,2]
[361620388,1747644649621,-2626.81,0.00013698,2]
[361620389,1747644649631,-420.0,0.00013698,2]
[361620390,1747644649641,-478.44,0.00013698,2]
[361620391,1747644649652,-7339.98,0.00013698,2]
[361620392,1747644649662,-420.0,0.00013698,2]
[361620393,1747644649672,-1114.68,0.00013698,2]
[361620394,1747644649682,-162.604147,0.00013698,2]
[361620395,1747644649692,-498.56,0.00013698,2]
[361620396,1747644649702,-945.7,0.00013698,2]
[361620397,1747644649711,-169524.65,0.00013698,2]
[361620398,1747644649721,-420.0,0.00013698,2]
[361620399,1747644649730,-380.0,0.00013698,2]
[361620400,1747644649740,-401.74571758,0.00013698,2]
[361620401,1747644649749,-568.16,0.00013698,2]
[361620402,1747644649759,-712.45,0.00013698,2]
[361620403,1747644649768,-813.83,0.00013698,2]
[361620404,1747644649777,-420.0,0.00013698,2]
[361620405,1747644649787,-420.0,0.00013698,2]
[361620406,1747644649796,-380.0,0.00013698,2]
[361620407,1747644649807,-400.0,0.00013698,2]
[361620408,1747644649816,-921.61,0.00013698,2]
[361620409,1747644649825,-3426.23,0.00013698,2]
[361620410,1747644649835,-567.98,0.00013698,2]
[361620411,1747644649844,-420.0,0.00013698,2]
[361620412,1747644649855,-420.0,0.00013698,2]
[361620413,1747644649865,-8809.31568473,0.00013699,2]
[361620414,1747644650396,-732.62,0.00013699,2]
[361620415,1747644650405,-200.0,0.00013699,2]
[361620416,1747644650415,-46.54171516,0.00013699,2]
[361620417,1747644651244,-725.23,0.00013096,2]
[361620418,1747644651253,-420.0,0.00013698,2]
[361620419,1747644651262,-380.0,0.00013698,2]
[361620420,1747644651271,-420.0,0.00013698,2]
[361620421,1747644651280,-1453.45828484,0.00013699,2]
[361620422,1747644651289,-7060.62351853,0.00013699,2]
[361620423,1747644651298,-186.75433286,0.00013699,2]
[361620424,1747644651307,-421.26950349,0.00013699,2]
[361620425,1747644651316,-180.54407292,0.00013699,2]
[361620426,1747644651325,-151.0,0.00013699,2]
[361620427,1747644651334,-151.0,0.00013699,2]
[361620428,1747644651343,-151.0,0.00013699,2]
[361620429,1747644651353,-500.0,0.00013699,2]
[361620430,1747644651363,-1558.91083189,0.00013699,2]
[361620431,1747644651372,-1558.91083189,0.00013699,2]
[361620432,1747644651381,-284.62718695,0.00013699,2]
[361620433,1747644651390,-500.0,0.00013699,2]
[361620434,1747644651401,-1558.91083189,0.00013699,2]
[361620435,1747644651411,-1558.91083189,0.00013699,2]
[361620436,1747644651421,-1558.91083189,0.00013699,2]
[361620437,1747644651432,-500.0,0.00013699,2]
[361620438,1747644651441,-1558.91083189,0.00013699,2]
[361620439,1747644651451,-500.0,0.00013699,2]
[361620440,1747644651461,-1558.91083189,0.00013699,2]
[361620441,1747644651471,-1558.91083189,0.00013699,2]
[361620442,1747644651479,-1558.91083189,0.00013699,2]
[361620443,1747644651489,-500.0,0.00013699,2]
[361620444,1747644651498,-1558.91083189,0.00013699,2]
[361620445,1747644651507,-1558.91083189,0.00013699,2]
[361620446,1747644651517,-1558.91083189,0.00013699,2]
[361620447,1747644651526,-1558.91083189,0.00013699,2]
[361620448,1747644651535,-1558.91083189,0.00013699,2]
[361620449,1747644651544,-1558.91083189,0.00013699,2]
[361620450,1747644651553,-1558.91083189,0.00013699,2]
[361620451,1747644651562,-1558.91083189,0.00013699,2]
[361620452,1747644651572,-1558.91083189,0.00013699,2]
[361620453,1747644651580,-1558.91083189,0.00013699,2]
[361620454,1747644651589,-1558.91083189,0.00013699,2]
[361620455,1747644651598,-1558.91083189,0.00013699,2]
[361620456,1747644651607,-1558.91083189,0.00013699,2]
[361620457,1747644651617,-1222.870101,0.00013699,2]
[361620458,1747644651653,-1158.37,0.00013,2]
[361620459,1747644651663,-336.04073089,0.00013699,2]
[361620460,1747644651673,-1558.91083189,0.00013699,2]
[361620461,1747644651682,-1558.91083189,0.00013699,2]
[361620462,1747644651692,-1558.91083189,0.00013699,2]
[361620463,1747644651701,-1558.91083189,0.00013699,2]
[361620464,1747644651710,-1558.91083189,0.00013699,2]
[361620465,1747644651720,-1558.91083189,0.00013699,2]
[361620466,1747644651729,-1558.91083189,0.00013699,2]
[361620467,1747644651738,-1558.91083189,0.00013699,2]
[361620468,1747644651748,-1558.91083189,0.00013699,2]
[361620469,1747644651757,-1558.91083189,0.00013699,2]
[361620470,1747644651766,-1558.91083189,0.00013699,2]
[361620471,1747644651776,-1558.91083189,0.00013699,2]
[361620472,1747644651785,-1558.91083189,0.00013699,2]
[361620473,1747644651794,-1558.91083189,0.00013699,2]
[361620474,1747644651803,-500.0,0.00013699,2]
[361620475,1747644651813,-1558.91083189,0.00013699,2]
[361620476,1747644651822,-1558.91083189,0.00013699,2]
[361620477,1747644651830,-1558.91083189,0.00013699,2]
[361620478,1747644651839,-1558.91083189,0.00013699,2]
[361620479,1747644651848,-1558.91083189,0.00013699,2]
[361620480,1747644651857,-1558.91083189,0.00013699,2]
[361620481,1747644651866,-1558.91083189,0.00013699,2]
[361620482,1747644651876,-1558.91083189,0.00013699,2]
[361620483,1747644651885,-1558.91083189,0.00013699,2]
[361620484,1747644651894,-1558.91083189,0.00013699,2]
[361620485,1747644651904,-1558.91083189,0.00013699,2]
[361620486,1747644651913,-1558.91083189,0.00013699,2]
[361620487,1747644651922,-1558.91083189,0.00013699,2]
[361620488,1747644651931,-1558.91083189,0.00013699,2]
[361620489,1747644651940,-1558.91083189,0.00013699,2]
[361620490,1747644651949,-1558.91083189,0.00013699,2]
[361620491,1747644651958,-1558.91083189,0.00013699,2]
[361620492,1747644651967,-1558.91083189,0.00013699,2]
[361620493,1747644651977,-1558.91083189,0.00013699,2]
[361620494,1747644651986,-1558.91083189,0.00013699,2]
[361620495,1747644651996,-1558.91083189,0.00013699,2]
[361620496,1747644652010,-1558.91083189,0.00013699,2]
[361620497,1747644652020,-1558.91083189,0.00013699,2]
[361620498,1747644652030,-1558.91083189,0.00013699,2]
[361620499,1747644652039,-1558.91083189,0.00013699,2]
[361620500,1747644652049,-1558.91083189,0.00013699,2]
[361620501,1747644652059,-1558.91083189,0.00013699,2]
[361620502,1747644652070,-1558.91083189,0.00013699,2]
[361620503,1747644652080,-1558.91083189,0.00013699,2]
[361620504,1747644652089,-1766.07,0.000137,2]
[361620505,1747644652099,-344.00139739,0.00013702,2]
[361620506,1747644652108,-344.00139739,0.00013713,2]
[361620507,1747644652117,-772.0,0.00013725,2]
[361620508,1747644652127,-344.00139739,0.00013725,2]
[361620509,1747644652137,-7060.62351853,0.00013732,2]
[361620510,1747644652147,-186.75433286,0.00013732,2]
[361620511,1747644652157,-344.00139739,0.00013736,2]
[361620512,1747644652167,-344.00139739,0.00013748,2]
[361620513,1747644652177,-364.62,0.00013748,2]
[361620514,1747644652186,-344.00139739,0.00013759,2]
[361620515,1747644652195,-574.65111135,0.00013761,2]
[361620516,1747644652204,-7060.62351853,0.00013766,2]
[361620517,1747644652213,-186.75433286,0.00013766,2]
[361620518,1747644652222,-344.00139739,0.00013771,2]
[361620519,1747644652232,-344.00139739,0.00013782,2]
[361620520,1747644652241,-344.00139739,0.00013794,2]
[361620521,1747644652250,-7060.62351853,0.00013799,2]
[361620522,1747644652259,-186.75433286,0.00013799,2]
[361620523,1747644652269,-2530.45,0.000138,2]
[361620524,1747644652278,-344.00139739,0.00013805,2]
[361620525,1747644652287,-200.0,0.00013806,2]
[361620526,1747644652297,-500.0,0.00013806,2]
[361620527,1747644652306,-500.0,0.00013807,2]
[361620528,1747644652315,-500.0,0.00013807,2]
[361620529,1747644652325,-500.0,0.00013807,2]
[361620530,1747644652335,-151.0,0.00013808,2]
[361620531,1747644652344,-151.0,0.00013808,2]
[361620532,1747644652353,-151.0,0.00013808,2]
[361620533,1747644652363,-151.0,0.00013808,2]
[361620534,1747644652372,-151.0,0.00013808,2]
[361620535,1747644652381,-151.0,0.00013808,2]
[361620536,1747644652391,-151.0,0.00013808,2]
[361620537,1747644652402,-151.0,0.00013808,2]
[361620538,1747644652412,-151.0,0.00013808,2]
[361620539,1747644652421,-154.426419,0.00013808,2]
[361620540,1747644652431,-206.527274,0.00013808,2]
[361620541,1747644652440,-467.062782,0.00013808,2]
[361620542,1747644652450,-467.062782,0.00013808,2]
[361620543,1747644652458,-467.062782,0.00013808,2]
[361620544,1747644652468,-467.062782,0.00013808,2]
[361620545,1747644652477,-446.09,0.00013808,2]
[361620546,1747644652486,-420.0,0.00013808,2]
[361620547,1747644652495,-420.0,0.00013808,2]
[361620548,1747644652504,-420.0,0.00013808,2]
[361620549,1747644652513,-420.0,0.00013808,2]
[361620550,1747644652522,-420.0,0.00013808,2]
[361620551,1747644652532,-482.84,0.00013808,2]
[361620552,1747644652541,-420.0,0.00013808,2]
[361620553,1747644652550,-599.07,0.00013808,2]
[361620554,1747644652559,-151.0,0.00013808,2]
[361620555,1747644652568,-420.0,0.00013808,2]
[361620556,1747644652578,-205.066588,0.00013808,2]
[361620557,1747644652588,-420.0,0.00013808,2]
[361620558,1747644652597,-280.0,0.00013808,2]
[361620559,1747644652607,-420.0,0.00013808,2]
[361620560,1747644652616,-151.0,0.00013808,2]
[361620561,1747644652625,-420.0,0.00013808,2]
[361620562,1747644652634,-151.0,0.00013808,2]
[361620563,1747644652644,-420.0,0.00013808,2]
[361620564,1747644652657,-151.0,0.00013808,2]
[361620565,1747644652666,-499.36,0.00013808,2]
[361620566,1747644652675,-710.78,0.00013808,2]
[361620567,1747644652684,-679.08,0.00013808,2]
[361620568,1747644652693,-527.48,0.00013808,2]
[361620569,1747644652703,-289.38362072,0.00013808,2]
[361620570,1747644652713,-420.0,0.00013808,2]
[361620571,1747644652723,-420.0,0.00013808,2]
[361620572,1747644652734,-420.0,0.00013808,2]
[361620573,1747644652743,-420.0,0.00013808,2]
[361620574,1747644652753,-430.89317893,0.00013808,2]
[361620575,1747644652762,-420.0,0.00013808,2]
[361620576,1747644652771,-510.46,0.00013808,2]
[361620577,1747644652781,-655.73,0.00013808,2]
[361620578,1747644652790,-420.0,0.00013808,2]
[361620579,1747644652799,-420.0,0.00013808,2]
[361620580,1747644652809,-535.76,0.00013808,2]
[361620581,1747644652818,-151.0,0.00013808,2]
[361620582,1747644652828,-420.0,0.00013808,2]
[361620583,1747644652837,-400.0,0.00013808,2]
[361620584,1747644652846,-420.0,0.00013808,2]
[361620585,1747644652856,-590.41,0.00013808,2]
[361620586,1747644652865,-378.361767,0.00013808,2]
[361620587,1747644652874,-420.0,0.00013808,2]
[361620588,1747644652883,-378.361767,0.00013808,2]
[361620589,1747644652893,-420.0,0.00013808,2]
[361620590,1747644652903,-420.0,0.00013808,2]
[361620591,1747644652912,-420.0,0.00013808,2]
[361620592,1747644652921,-420.0,0.00013808,2]
[361620593,1747644652931,-450.94,0.00013808,2]
[361620594,1747644652940,-420.0,0.00013808,2]
[361620595,1747644652949,-420.0,0.00013808,2]
[361620596,1747644652958,-517.36,0.00013808,2]
[361620597,1747644652968,-447.19,0.00013808,2]
[361620598,1747644652977,-420.0,0.00013808,2]
[361620599,1747644652986,-420.0,0.00013808,2]
[361620600,1747644652995,-525.47,0.00013808,2]
[361620601,1747644653008,-341.44598555,0.00013808,2]
[361620602,1747644653017,-420.0,0.00013808,2]
[361620603,1747644653027,-420.0,0.00013808,2]
[361620604,1747644653036,-420.0,0.00013808,2]
[361620605,1747644653046,-420.0,0.00013808,2]
[361620606,1747644653056,-6239.060733,0.00013808,2]
[361620607,1747644653065,-420.0,0.00013808,2]
[361620608,1747644653075,-420.0,0.00013808,2]
[361620609,1747644653085,-6239.060733,0.00013808,2]
[361620610,1747644653094,-420.0,0.00013808,2]
[361620611,1747644653104,-420.0,0.00013808,2]
[361620612,1747644653113,-627.56,0.00013808,2]
[361620613,1747644653122,-206.53121495,0.00013808,2]
[361620614,1747644653131,-420.0,0.00013808,2]
[361620615,1747644653141,-151.0,0.00013808,2]
[361620616,1747644653151,-151.0,0.00013808,2]
[361620617,1747644653160,-420.0,0.00013808,2]
[361620618,1747644653170,-523.58,0.00013808,2]
[361620619,1747644653180,-420.0,0.00013808,2]
[361620620,1747644653189,-420.0,0.00013808,2]
[361620621,1747644653198,-638.59,0.00013808,2]
[361620622,1747644653207,-1155.39,0.00013808,2]
[361620623,1747644653217,-469.50591847,0.00013808,2]
[361620624,1747644653226,-420.0,0.00013808,2]
[361620625,1747644653236,-420.0,0.00013808,2]
[361620626,1747644653246,-197.454316,0.00013808,2]
[361620627,1747644653256,-420.0,0.00013808,2]
[361620628,1747644653265,-420.0,0.00013808,2]
[361620629,1747644653274,-420.0,0.00013808,2]
[361620630,1747644653284,-420.0,0.00013808,2]
[361620631,1747644653293,-674.16,0.00013808,2]
[361620632,1747644653303,-498.2,0.00013808,2]
[361620633,1747644653312,-420.0,0.00013808,2]
[361620634,1747644653320,-648.98,0.00013808,2]
[361620635,1747644653330,-465.05,0.00013808,2]
[361620636,1747644653339,-420.0,0.00013808,2]
[361620637,1747644653348,-420.0,0.00013808,2]
[361620638,1747644653357,-420.0,0.00013808,2]
[361620639,1747644653367,-420.0,0.00013808,2]
[361620640,1747644653376,-380.0,0.00013808,2]
[361620641,1747644653385,-453.24,0.00013808,2]
[361620642,1747644653394,-667.6,0.00013808,2]
[361620643,1747644653404,-420.0,0.00013808,2]
[361620644,1747644653413,-293.23951885,0.00013808,2]
[361620645,1747644653423,-400.0,0.00013808,2]
[361620646,1747644653433,-439.03,0.00013808,2]
[361620647,1747644653443,-151.0,0.00013808,2]
[361620648,1747644653452,-420.0,0.00013808,2]
[361620649,1747644653461,-531.6,0.00013808,2]
[361620650,1747644653471,-380.0,0.00013808,2]
[361620651,1747644653480,-546.72,0.00013808,2]
[361620652,1747644653490,-431.42,0.00013808,2]
[361620653,1747644653499,-420.0,0.00013808,2]
[361620654,1747644653508,-875.22,0.00013808,2]
[361620655,1747644653517,-620.02,0.00013808,2]
[361620656,1747644653526,-420.0,0.00013808,2]
[361620657,1747644653535,-420.0,0.00013808,2]
[361620658,1747644653544,-1889.43,0.00013808,2]
[361620659,1747644653553,-533.68,0.00013808,2]
[361620660,1747644653563,-420.0,0.00013808,2]
[361620661,1747644653572,-420.0,0.00013808,2]
[361620662,1747644653581,-151.0,0.00013808,2]
[361620663,1747644653590,-459.85,0.00013808,2]
[361620664,1747644653599,-151.758566,0.00013808,2]
[361620665,1747644653610,-420.0,0.00013808,2]
[361620666,1747644653620,-420.0,0.00013808,2]
[361620667,1747644653630,-678.96,0.00013808,2]
[361620668,1747644653640,-420.0,0.00013808,2]
[361620669,1747644653651,-675.07,0.00013808,2]
[361620670,1747644653660,-420.0,0.00013808,2]
[361620671,1747644653670,-1071.05,0.00013808,2]
[361620672,1747644653679,-496.79,0.00013808,2]
[361620673,1747644653688,-716.92,0.00013808,2]
[361620674,1747644653698,-1002.48,0.00013808,2]
[361620675,1747644653707,-420.0,0.00013808,2]
[361620676,1747644653717,-420.0,0.00013808,2]
[361620677,1747644653726,-420.0,0.00013808,2]
[361620678,1747644653735,-478.1,0.00013808,2]
[361620679,1747644653744,-1629.038926,0.00013808,2]
[361620680,1747644653754,-420.0,0.00013808,2]
[361620681,1747644653763,-420.0,0.00013808,2]
[361620682,1747644653771,-420.0,0.00013808,2]
[361620683,1747644653780,-1629.038926,0.00013808,2]
[361620684,1747644653790,-1329.73,0.00013808,2]
[361620685,1747644653799,-423.71,0.00013808,2]
[361620686,1747644653808,-843.03,0.00013808,2]
[361620687,1747644653817,-652.78,0.00013808,2]
[361620688,1747644653826,-582.48,0.00013808,2]
[361620689,1747644653835,-1036.58,0.00013808,2]
[361620690,1747644653844,-621.27,0.00013808,2]
[361620691,1747644653853,-368.66204469,0.00013808,2]
[361620692,1747644653862,-446.44,0.00013808,2]
[361620693,1747644653871,-420.0,0.00013808,2]
[361620694,1747644653880,-728.17,0.00013808,2]
[361620695,1747644653890,-420.0,0.00013808,2]
[361620696,1747644653899,-420.0,0.00013808,2]
[361620697,1747644653908,-420.0,0.00013808,2]
[361620698,1747644653917,-151.0,0.00013808,2]
[361620699,1747644653927,-471.58,0.00013808,2]
[361620700,1747644653936,-829.36,0.00013808,2]
[361620701,1747644653945,-420.0,0.00013808,2]
[361620702,1747644653955,-498.68,0.00013808,2]
[361620703,1747644653965,-420.0,0.00013808,2]
[361620704,1747644653975,-420.0,0.00013808,2]
[361620705,1747644653985,-987.69,0.00013808,2]
[361620706,1747644653994,-1300.63,0.00013808,2]
[361620707,1747644654006,-731.43,0.00013808,2]
[361620708,1747644654017,-420.0,0.00013808,2]
[361620709,1747644654027,-182.89894577,0.00013808,2]
[361620710,1747644654038,-420.0,0.00013808,2]
[361620711,1747644654049,-420.0,0.00013808,2]
[361620712,1747644654058,-262.04426382,0.00013808,2]
[361620713,1747644654067,-508.31,0.00013808,2]
[361620714,1747644654077,-1224.78,0.00013808,2]
[361620715,1747644654087,-612.54,0.00013808,2]
[361620716,1747644654097,-406.16758364,0.00013808,2]
[361620717,1747644654106,-539.48,0.00013808,2]
[361620718,1747644654116,-655.01,0.00013808,2]
[361620719,1747644654125,-420.0,0.00013808,2]
[361620720,1747644654134,-495.54,0.00013808,2]
[361620721,1747644654144,-591.811869,0.00013808,2]
[361620722,1747644654154,-420.0,0.00013808,2]
[361620723,1747644654163,-420.0,0.00013808,2]
[361620724,1747644654173,-591.811869,0.00013808,2]
[361620725,1747644654183,-783.24,0.00013808,2]
[361620726,1747644654193,-420.0,0.00013808,2]
[361620727,1747644654202,-700.63,0.00013808,2]
[361620728,1747644654211,-1038.06,0.00013808,2]
[361620729,1747644654221,-1002.32,0.00013808,2]
[361620730,1747644654230,-995.77,0.00013808,2]
[361620731,1747644654239,-420.0,0.00013808,2]
[361620732,1747644654249,-621.51,0.00013808,2]
[361620733,1747644654259,-641.86,0.00013808,2]
[361620734,1747644654268,-420.0,0.00013808,2]
[361620735,1747644654278,-151.0,0.00013808,2]
[361620736,1747644654287,-650.43,0.00013808,2]
[361620737,1747644654296,-898.79,0.00013808,2]
[361620738,1747644654305,-420.0,0.00013808,2]
[361620739,1747644654315,-456.9,0.00013808,2]
[361620740,1747644654324,-1039.49,0.00013808,2]
[361620741,1747644654334,-420.0,0.00013808,2]
[361620742,1747644654343,-420.0,0.00013808,2]
[361620743,1747644654352,-420.0,0.00013808,2]
[361620744,1747644654362,-1302.19,0.00013808,2]
[361620745,1747644654371,-612.05,0.00013808,2]
[361620746,1747644654380,-581.44,0.00013808,2]
[361620747,1747644654390,-420.0,0.00013808,2]
[361620748,1747644654400,-420.0,0.00013808,2]
[361620749,1747644654410,-420.0,0.00013808,2]
[361620750,1747644654419,-420.0,0.00013808,2]
[361620751,1747644654429,-293.056354,0.00013808,2]
[361620752,1747644654439,-420.0,0.00013808,2]
[361620753,1747644654448,-420.0,0.00013808,2]
[361620754,1747644654458,-437.2,0.00013808,2]
[361620755,1747644654467,-151.0,0.00013808,2]
[361620756,1747644654476,-1944.42,0.00013808,2]
[361620757,1747644654486,-151.0,0.00013808,2]
[361620758,1747644654495,-522.19,0.00013808,2]
[361620759,1747644654505,-151.0,0.00013808,2]
[361620760,1747644654514,-431.81,0.00013808,2]
[361620761,1747644654524,-239.57315649,0.00013808,2]
[361620762,1747644654533,-420.0,0.00013808,2]
[361620763,1747644654542,-420.0,0.00013808,2]
[361620764,1747644654551,-741.98,0.00013808,2]
[361620765,1747644654560,-791.63,0.00013808,2]
[361620766,1747644654569,-501.37,0.00013808,2]
[361620767,1747644654579,-420.0,0.00013808,2]
[361620768,1747644654589,-420.0,0.00013808,2]
[361620769,1747644654598,-516.42,0.00013808,2]
[361620770,1747644654608,-420.0,0.00013808,2]
[361620771,1747644654617,-860.8,0.00013808,2]
[361620772,1747644654626,-420.0,0.00013808,2]
[361620773,1747644654636,-987.56,0.00013808,2]
[361620774,1747644654645,-302.62129474,0.00013808,2]
[361620775,1747644654655,-420.0,0.00013808,2]
[361620776,1747644654665,-749.76,0.00013808,2]
[361620777,1747644654674,-1359.17,0.00013808,2]
[361620778,1747644654684,-508.04,0.00013808,2]
[361620779,1747644654694,-320.0,0.00013808,2]
[361620780,1747644654703,-420.0,0.00013808,2]
[361620781,1747644654713,-151.0,0.00013808,2]
[361620782,1747644654723,-420.0,0.00013808,2]
[361620783,1747644654732,-420.0,0.00013808,2]
[361620784,1747644654742,-975.88,0.00013808,2]
[361620785,1747644654752,-597.57,0.00013808,2]
[361620786,1747644654762,-834.89,0.00013808,2]
[361620787,1747644654772,-420.0,0.00013808,2]
[361620788,1747644654781,-664.98,0.00013808,2]
[361620789,1747644654791,-481.19,0.00013808,2]
[361620790,1747644654801,-420.0,0.00013808,2]
[361620791,1747644654959,-540.25720177,0.00013808,2]
[361620792,1747644654982,-420.0,0.00013808,2]
[361620793,1747644654992,-420.0,0.00013808,2]
[361620794,1747644655003,-420.0,0.00013808,2]
[361620795,1747644655014,-1064.28,0.00013808,2]
[361620796,1747644655024,-520.21,0.00013808,2]
[361620797,1747644655033,-420.0,0.00013808,2]
[361620798,1747644655043,-373.40595828,0.00013808,2]
[361620799,1747644655053,-320.0,0.00013808,2]
[361620800,1747644655063,-572.83,0.00013808,2]
[361620801,1747644655072,-420.0,0.00013808,2]
[361620802,1747644655083,-420.0,0.00013808,2]
[361620803,1747644655093,-400.0,0.00013808,2]
[361620804,1747644655102,-897.54,0.00013808,2]
[361620805,1747644655112,-559.6,0.00013808,2]
[361620806,1747644655122,-279.19324067,0.00013808,2]
[361620807,1747644655132,-420.0,0.00013808,2]
[361620808,1747644655141,-420.0,0.00013808,2]
[361620809,1747644655151,-420.0,0.00013808,2]
[361620810,1747644655160,-420.05,0.00013808,2]
[361620811,1747644655170,-400.0,0.00013808,2]
[361620812,1747644655180,-420.0,0.00013808,2]
[361620813,1747644655190,-792.61,0.00013808,2]
[361620814,1747644655200,-796.71,0.00013808,2]
[361620815,1747644655209,-420.0,0.00013808,2]